[Event "*** Titled Tuesday Blitz"]
[Site "Chess.com"]
[Date "2018.06.05"]
[Round "9"]
[White "Beca95"]
[Black "Grandelicious"]
[Result "0-1"]
[WhiteElo "2758"]
[BlackElo "2684"]
[TimeControl "180+2"]
[EndTime "15:11:56 PDT"]
[Termination "Grandelicious won on time"]

1. d4 {[%clk 0:03:01.9]} 1... Nf6 {[%clk 0:03:00]} 2. c4 {[%clk 0:03:02.9]} 2...
e6 {[%clk 0:03:01.3]} 3. Nc3 {[%clk 0:03:03.6]} 3... Bb4 {[%clk 0:03:01.5]} 4.
Qc2 {[%clk 0:03:02.6]} 4... d5 {[%clk 0:03:01.3]} 5. cxd5 {[%clk 0:03:02]} 5...
exd5 {[%clk 0:03:01.8]} 6. Bg5 {[%clk 0:03:01.3]} 6... Nc6 {[%clk 0:03:03.1]} 7.
e3 {[%clk 0:03:00.7]} 7... h6 {[%clk 0:03:04.2]} 8. Bxf6 {[%clk 0:03:01.2]} 8...
Qxf6 {[%clk 0:03:05]} 9. Bd3 {[%clk 0:03:01.7]} 9... O-O {[%clk 0:03:00.6]} 10.
Ne2 {[%clk 0:03:02.5]} 10... Be6 {[%clk 0:02:59.3]} 11. O-O {[%clk 0:03:01.8]}
11... a6 {[%clk 0:02:58]} 12. a3 {[%clk 0:02:56.9]} 12... Bd6 {[%clk 0:02:57.6]}
13. Ng3 {[%clk 0:02:55.6]} 13... Ne7 {[%clk 0:02:32.2]} 14. b4 {[%clk
0:02:49.9]} 14... Rae8 {[%clk 0:02:14.4]} 15. b5 {[%clk 0:02:49.4]} 15... a5
{[%clk 0:02:06.2]} 16. a4 {[%clk 0:02:44.7]} 16... g6 {[%clk 0:02:05.3]} 17.
Rad1 {[%clk 0:02:42.1]} 17... h5 {[%clk 0:02:05.2]} 18. Nge2 {[%clk 0:02:39.4]}
18... Qg7 {[%clk 0:01:37]} 19. e4 {[%clk 0:02:39.3]} 19... dxe4 {[%clk
0:01:38.4]} 20. Nxe4 {[%clk 0:02:40]} 20... Nd5 {[%clk 0:01:37.8]} 21. h3 {[%clk
0:01:30]} 21... Nb4 {[%clk 0:01:33.3]} 22. Qb1 {[%clk 0:01:31]} 22... Nxd3
{[%clk 0:01:28.2]} 23. Qxd3 {[%clk 0:01:31.7]} 23... Bf5 {[%clk 0:01:26]} 24. f3
{[%clk 0:01:32.9]} 24... h4 {[%clk 0:01:22]} 25. N2c3 {[%clk 0:01:31.9]} 25...
Bb4 {[%clk 0:01:20.2]} 26. Qc4 {[%clk 0:01:29.3]} 26... Bxc3 {[%clk 0:01:12.2]}
27. Nxc3 {[%clk 0:01:29.1]} 27... Qh6 {[%clk 0:01:13.1]} 28. f4 {[%clk
0:01:28.6]} 28... Kh8 {[%clk 0:00:35.4]} 29. d5 {[%clk 0:01:18.8]} 29... Qg7
{[%clk 0:00:34.9]} 30. Rde1 {[%clk 0:01:19.8]} 30... Qf6 {[%clk 0:00:31.5]} 31.
Kf2 {[%clk 0:01:05.5]} 31... Kg7 {[%clk 0:00:22.7]} 32. Rd1 {[%clk 0:01:05.2]}
32... Qb6+ {[%clk 0:00:17.6]} 33. Qd4+ {[%clk 0:01:06]} 33... Qxd4+ {[%clk
0:00:17]} 34. Rxd4 {[%clk 0:01:07.9]} 34... Rd8 {[%clk 0:00:18.3]} 35. Rc1
{[%clk 0:01:08.6]} 35... c6 {[%clk 0:00:18.7]} 36. d6 {[%clk 0:01:04.3]} 36...
c5 {[%clk 0:00:19.3]} 37. Rd2 {[%clk 0:01:02.9]} 37... c4 {[%clk 0:00:20.1]} 38.
Rd4 {[%clk 0:01:00.9]} 38... Rd7 {[%clk 0:00:20.9]} 39. b6 {[%clk 0:00:57.5]}
39... Rc8 {[%clk 0:00:21.1]} 40. Nb5 {[%clk 0:00:58.5]} 40... Rc6 {[%clk
0:00:19.5]} 41. Rcxc4 {[%clk 0:00:58.6]} 41... Rxb6 {[%clk 0:00:19.9]} 42. Ke3
{[%clk 0:00:37]} 42... Rc6 {[%clk 0:00:20.1]} 43. Rxc6 {[%clk 0:00:23.3]} 43...
bxc6 {[%clk 0:00:22]} 44. Nc7 {[%clk 0:00:24.2]} 44... f6 {[%clk 0:00:23.5]} 45.
Na6 {[%clk 0:00:24.4]} 45... Kf7 {[%clk 0:00:17.9]} 46. Nc5 {[%clk 0:00:25.4]}
46... Rd8 {[%clk 0:00:19.5]} 47. Rd2 {[%clk 0:00:21]} 47... Be6 {[%clk
0:00:20.1]} 48. Rb2 {[%clk 0:00:12.7]} 48... Rxd6 {[%clk 0:00:21.2]} 49. Rb7+
{[%clk 0:00:13.7]} 49... Kg8 {[%clk 0:00:22.7]} 50. Rb8+ {[%clk 0:00:15.1]}
50... Kg7 {[%clk 0:00:22.7]} 51. Ra8 {[%clk 0:00:16.7]} 51... Bd5 {[%clk
0:00:22.8]} 52. Kf2 {[%clk 0:00:18.1]} 52... Bc4 {[%clk 0:00:21.3]} 53. Rxa5
{[%clk 0:00:18.7]} 53... Rd2+ {[%clk 0:00:22.4]} 54. Kg1 {[%clk 0:00:18.9]}
54... Bd5 {[%clk 0:00:22.5]} 55. Ra7+ {[%clk 0:00:20.1]} 55... Kh6 {[%clk
0:00:23.4]} 56. a5 {[%clk 0:00:21.6]} 56... Rxg2+ {[%clk 0:00:24.2]} 57. Kf1
{[%clk 0:00:23]} 57... Ra2 {[%clk 0:00:24.9]} 58. a6 {[%clk 0:00:23.2]} 58...
Bg2+ {[%clk 0:00:25.6]} 59. Kg1 {[%clk 0:00:21.9]} 59... Bxh3 {[%clk 0:00:26.6]}
60. Ra8 {[%clk 0:00:23.5]} 60... Bf5 {[%clk 0:00:21.5]} 61. a7 {[%clk
0:00:23.4]} 61... Kg7 {[%clk 0:00:21.9]} 62. Nb3 {[%clk 0:00:07.1]} 62... h3
{[%clk 0:00:21.6]} 63. Nc5 {[%clk 0:00:03.7]} 63... h2+ {[%clk 0:00:21]} 64. Kh1
{[%clk 0:00:05.6]} 64... Bg4 {[%clk 0:00:22.5]} 0-1

[Event "*** Titled Tuesday Blitz"]
[Site "Chess.com"]
[Date "2018.06.05"]
[Round "9"]
[White "1e41-0"]
[Black "Zufi1811"]
[Result "0-1"]
[WhiteElo "2415"]
[BlackElo "2466"]
[TimeControl "180+2"]
[EndTime "15:12:01 PDT"]
[Termination "Zufi1811 won by resignation"]

1. Nf3 {[%clk 0:03:01.9]} 1... Nf6 {[%clk 0:02:57.7]} 2. g3 {[%clk 0:03:01.7]}
2... g6 {[%clk 0:02:58.2]} 3. Bg2 {[%clk 0:03:02.3]} 3... Bg7 {[%clk 0:03:00.1]}
4. O-O {[%clk 0:03:02.7]} 4... O-O {[%clk 0:03:02]} 5. d3 {[%clk 0:03:04.1]}
5... d5 {[%clk 0:03:02.3]} 6. Nbd2 {[%clk 0:03:04]} 6... Nc6 {[%clk 0:02:51.9]}
7. e4 {[%clk 0:03:01.8]} 7... e5 {[%clk 0:02:53.8]} 8. exd5 {[%clk 0:02:50.7]}
8... Nxd5 {[%clk 0:02:55.7]} 9. Re1 {[%clk 0:02:50.9]} 9... h6 {[%clk
0:02:52.7]} 10. Nc4 {[%clk 0:02:50.7]} 10... Re8 {[%clk 0:02:54]} 11. Bd2 {[%clk
0:02:47.5]} 11... Bg4 {[%clk 0:02:47.6]} 12. h3 {[%clk 0:02:47.6]} 12... Bf5
{[%clk 0:02:46.1]} 13. Rb1 {[%clk 0:02:43]} 13... g5 {[%clk 0:02:26]} 14. b4
{[%clk 0:02:32.9]} 14... e4 {[%clk 0:02:18.8]} 15. Nh2 {[%clk 0:02:18.8]} 15...
Nc3 {[%clk 0:02:11.8]} 16. Bxc3 {[%clk 0:02:14.5]} 16... Bxc3 {[%clk 0:02:13.7]}
17. Re3 {[%clk 0:01:50.4]} 17... exd3 {[%clk 0:02:01.5]} 18. cxd3 {[%clk
0:01:45.1]} 18... Rxe3 {[%clk 0:01:26.7]} 19. Nxe3 {[%clk 0:01:44.7]} 19... Bg6
{[%clk 0:01:26]} 20. b5 {[%clk 0:01:34.2]} 20... Ne5 {[%clk 0:01:11.4]} 21. Bxb7
{[%clk 0:01:32.2]} 21... Rb8 {[%clk 0:01:12]} 22. Be4 {[%clk 0:01:31.7]} 22...
Bxe4 {[%clk 0:00:47.5]} 23. dxe4 {[%clk 0:01:33.6]} 23... Qxd1+ {[%clk 0:00:47]}
24. Nxd1 {[%clk 0:01:25.5]} 24... Bd4 {[%clk 0:00:47.7]} 25. Kg2 {[%clk
0:01:26]} 25... a6 {[%clk 0:00:40.6]} 26. a4 {[%clk 0:01:26.6]} 26... c6 {[%clk
0:00:39.1]} 27. Rb4 {[%clk 0:00:53.7]} 27... Bc5 {[%clk 0:00:31]} 28. Rb2 {[%clk
0:00:40.2]} 28... cxb5 {[%clk 0:00:29.7]} 29. axb5 {[%clk 0:00:41.2]} 29... Rxb5
{[%clk 0:00:23.7]} 30. Ra2 {[%clk 0:00:40.2]} 30... a5 {[%clk 0:00:20.4]} 31.
Nc3 {[%clk 0:00:41.4]} 31... Rb3 {[%clk 0:00:21.7]} 32. Nd5 {[%clk 0:00:41.3]}
32... Ra3 {[%clk 0:00:13.2]} 33. Rc2 {[%clk 0:00:40.2]} 33... Bd4 {[%clk
0:00:12.6]} 34. Nf1 {[%clk 0:00:33.5]} 34... Kg7 {[%clk 0:00:12.6]} 35. Nfe3
{[%clk 0:00:34.5]} 35... Bxe3 {[%clk 0:00:11.9]} 36. Nxe3 {[%clk 0:00:36.4]}
36... a4 {[%clk 0:00:12]} 37. Rc5 {[%clk 0:00:36.3]} 37... Nd3 {[%clk
0:00:09.1]} 38. Rc6 {[%clk 0:00:33.7]} 38... Ra2 {[%clk 0:00:06.7]} 39. Nf5+
{[%clk 0:00:27.4]} 39... Kh7 {[%clk 0:00:07.8]} 40. Rxh6+ {[%clk 0:00:26.9]}
40... Kg8 {[%clk 0:00:09]} 41. Ra6 {[%clk 0:00:27.5]} 41... Rxf2+ {[%clk
0:00:08]} 42. Kg1 {[%clk 0:00:29]} 42... Ra2 {[%clk 0:00:08.4]} 43. h4 {[%clk
0:00:18.9]} 43... gxh4 {[%clk 0:00:06.5]} 44. gxh4 {[%clk 0:00:20.8]} 44... a3
{[%clk 0:00:07.3]} 45. h5 {[%clk 0:00:20.8]} 45... Nb4 {[%clk 0:00:05.4]} 46.
Ra8+ {[%clk 0:00:20.5]} 46... Kh7 {[%clk 0:00:05.2]} 47. Ra7 {[%clk 0:00:22.4]}
47... Ra1+ {[%clk 0:00:04.3]} 48. Kg2 {[%clk 0:00:22.6]} 48... a2 {[%clk
0:00:06.2]} 49. Rxf7+ {[%clk 0:00:16.8]} 49... Kg8 {[%clk 0:00:06.8]} 50. Rg7+
{[%clk 0:00:17.5]} 50... Kh8 {[%clk 0:00:07.7]} 51. Ra7 {[%clk 0:00:18.4]} 51...
Rb1 {[%clk 0:00:08.5]} 52. Ra8+ {[%clk 0:00:19.8]} 52... Kh7 {[%clk 0:00:08]}
53. Ra7+ {[%clk 0:00:21.1]} 53... Kg8 {[%clk 0:00:09.5]} 54. Ra8+ {[%clk
0:00:21.4]} 54... Kf7 {[%clk 0:00:10.9]} 55. Ra7+ {[%clk 0:00:16.1]} 55... Kf6
{[%clk 0:00:11.7]} 56. h6 {[%clk 0:00:12.6]} 56... a1=Q {[%clk 0:00:12.5]} 57.
Rxa1 {[%clk 0:00:07.3]} 57... Rxa1 {[%clk 0:00:14.4]} 58. h7 {[%clk 0:00:08]}
58... Ra8 {[%clk 0:00:14.6]} 59. Kf3 {[%clk 0:00:09.5]} 59... Rh8 {[%clk
0:00:14.8]} 60. Kf4 {[%clk 0:00:10.3]} 60... Nd3+ {[%clk 0:00:15.5]} 61. Ke3
{[%clk 0:00:11.4]} 61... Ne5 {[%clk 0:00:16.3]} 62. Kf4 {[%clk 0:00:12.9]} 62...
Rxh7 {[%clk 0:00:16.9]} 63. Ne3 {[%clk 0:00:14.8]} 63... Rh4+ {[%clk 0:00:17.4]}
64. Kg3 {[%clk 0:00:16.4]} 64... Rxe4 {[%clk 0:00:17.8]} 65. Nd5+ {[%clk
0:00:18]} 65... Kg5 {[%clk 0:00:18.1]} 66. Kf2 {[%clk 0:00:18.6]} 66... Rd4
{[%clk 0:00:17.6]} 67. Ne3 {[%clk 0:00:19.6]} 67... Ng4+ {[%clk 0:00:17.1]} 68.
Kf3 {[%clk 0:00:20.7]} 68... Rd3 {[%clk 0:00:17.1]} 69. Kg2 {[%clk 0:00:20.7]}
69... Rxe3 {[%clk 0:00:17.8]} 0-1

[Event "*** Titled Tuesday Blitz"]
[Site "Chess.com"]
[Date "2018.06.05"]
[Round "9"]
[White "Raja3401"]
[Black "ChrisTool2"]
[Result "1-0"]
[WhiteElo "2414"]
[BlackElo "2261"]
[TimeControl "180+2"]
[EndTime "15:12:16 PDT"]
[Termination "Raja3401 won by resignation"]

1. e4 {[%clk 0:03:01.9]} 1... c5 {[%clk 0:03:00.6]} 2. Nf3 {[%clk 0:03:01.5]}
2... e6 {[%clk 0:03:01.8]} 3. d4 {[%clk 0:03:02.4]} 3... cxd4 {[%clk 0:03:03]}
4. Nxd4 {[%clk 0:03:04.3]} 4... a6 {[%clk 0:03:04]} 5. c4 {[%clk 0:03:02.3]}
5... Qc7 {[%clk 0:03:04.4]} 6. Nc3 {[%clk 0:03:02.7]} 6... b6 {[%clk 0:03:05.4]}
7. Bd3 {[%clk 0:03:00.8]} 7... Bb7 {[%clk 0:03:06.3]} 8. O-O {[%clk 0:03:01.8]}
8... Nf6 {[%clk 0:03:05.6]} 9. Re1 {[%clk 0:02:54.3]} 9... d6 {[%clk 0:03:01.6]}
10. Be3 {[%clk 0:02:48.3]} 10... Nbd7 {[%clk 0:03:02.2]} 11. f3 {[%clk
0:02:15.7]} 11... Be7 {[%clk 0:03:02.6]} 12. Rc1 {[%clk 0:02:14.5]} 12... O-O
{[%clk 0:03:03.1]} 13. b4 {[%clk 0:02:14.5]} 13... Rac8 {[%clk 0:03:02.9]} 14.
Kh1 {[%clk 0:02:14.4]} 14... Rfe8 {[%clk 0:02:57.7]} 15. Bg1 {[%clk 0:02:09.3]}
15... Qb8 {[%clk 0:02:56.8]} 16. Bf1 {[%clk 0:01:46.2]} 16... h5 {[%clk
0:02:53.1]} 17. Nb3 {[%clk 0:01:42.7]} 17... h4 {[%clk 0:02:50.8]} 18. Na4
{[%clk 0:01:31.2]} 18... h3 {[%clk 0:02:42.8]} 19. gxh3 {[%clk 0:01:22.3]} 19...
d5 {[%clk 0:02:35.5]} 20. cxd5 {[%clk 0:01:15.9]} 20... Bxb4 {[%clk 0:02:25.5]}
21. dxe6 {[%clk 0:01:09.1]} 21... Rxe6 {[%clk 0:02:20.2]} 22. Rxc8+ {[%clk
0:01:09.1]} 22... Qxc8 {[%clk 0:02:18.2]} 23. Re2 {[%clk 0:01:06.1]} 23... Ne5
{[%clk 0:01:48]} 24. Bg2 {[%clk 0:01:00.5]} 24... b5 {[%clk 0:01:41.8]} 25. Nac5
{[%clk 0:00:48.7]} 25... Re7 {[%clk 0:01:11.3]} 26. Nxb7 {[%clk 0:00:48.5]}
26... Rxb7 {[%clk 0:01:10.5]} 27. Nd4 {[%clk 0:00:35.6]} 27... Nh5 {[%clk
0:01:04.5]} 28. Rc2 {[%clk 0:00:26.2]} 28... Qd8 {[%clk 0:00:56.8]} 29. Qb1
{[%clk 0:00:21.6]} 29... Ba5 {[%clk 0:00:42.7]} 30. Be3 {[%clk 0:00:21.6]} 30...
Bb6 {[%clk 0:00:39.9]} 31. Qa1 {[%clk 0:00:11.5]} 31... Rd7 {[%clk 0:00:34.4]}
32. Rd2 {[%clk 0:00:05.7]} 32... Nc4 {[%clk 0:00:28.2]} 33. Nc6 {[%clk
0:00:06.8]} 33... Bxe3 {[%clk 0:00:21.5]} 34. Nxd8 {[%clk 0:00:06.9]} 34... Rxd2
{[%clk 0:00:22.6]} 35. Nc6 {[%clk 0:00:07]} 35... Nf4 {[%clk 0:00:21.6]} 36.
Ne7+ {[%clk 0:00:07.6]} 36... Kf8 {[%clk 0:00:17.8]} 37. Nf5 {[%clk 0:00:08.6]}
37... Rxg2 {[%clk 0:00:16.4]} 38. Nxe3 {[%clk 0:00:09.9]} 38... Nxe3 {[%clk
0:00:16.4]} 39. Qd4 {[%clk 0:00:10]} 39... g5 {[%clk 0:00:11]} 40. Qxe3 {[%clk
0:00:07.7]} 40... Rc2 {[%clk 0:00:10.5]} 41. h4 {[%clk 0:00:05.1]} 41... Re2
{[%clk 0:00:09.6]} 42. Qc5+ {[%clk 0:00:06.1]} 42... Ke8 {[%clk 0:00:10.9]} 43.
Qe5+ {[%clk 0:00:07.2]} 43... Kd7 {[%clk 0:00:10.5]} 44. Qf5+ {[%clk 0:00:08.4]}
44... Kc6 {[%clk 0:00:08.8]} 45. h3 {[%clk 0:00:08.3]} 45... Re1+ {[%clk
0:00:08.8]} 46. Kh2 {[%clk 0:00:08.3]} 46... Re2+ {[%clk 0:00:10.1]} 47. Kg1
{[%clk 0:00:07.8]} 47... Re1+ {[%clk 0:00:10.7]} 48. Kf2 {[%clk 0:00:08.5]}
48... Re2+ {[%clk 0:00:11.9]} 49. Kf1 {[%clk 0:00:09.3]} 49... Rxa2 {[%clk
0:00:09]} 50. Qf6+ {[%clk 0:00:10.6]} 50... Ne6 {[%clk 0:00:06]} 51. Qxf7 {[%clk
0:00:11.5]} 51... Ra1+ {[%clk 0:00:06.5]} 52. Kf2 {[%clk 0:00:12.7]} 52... Kd6
{[%clk 0:00:06.3]} 53. hxg5 {[%clk 0:00:12.3]} 53... Ra2+ {[%clk 0:00:05.6]} 54.
Kg3 {[%clk 0:00:13.6]} 54... Ra1 {[%clk 0:00:02.8]} 55. g6 {[%clk 0:00:14.8]}
55... b4 {[%clk 0:00:03.4]} 56. g7 {[%clk 0:00:15.4]} 56... Rg1+ {[%clk
0:00:04.9]} 57. Kf2 {[%clk 0:00:16.3]} 57... Rxg7 {[%clk 0:00:06.8]} 58. Qf6
{[%clk 0:00:14.5]} 58... a5 {[%clk 0:00:06.9]} 59. f4 {[%clk 0:00:15.7]} 59...
Rc7 {[%clk 0:00:05.3]} 60. f5 {[%clk 0:00:16.5]} 60... Re7 {[%clk 0:00:04.8]}
61. e5+ {[%clk 0:00:15.4]} 61... Kd5 {[%clk 0:00:05.6]} 62. Qxe7 {[%clk
0:00:16.2]} 62... Nd4 {[%clk 0:00:05.1]} 63. Qd6+ {[%clk 0:00:17.1]} 63... Ke4
{[%clk 0:00:06.3]} 64. f6 {[%clk 0:00:17.4]} 64... b3 {[%clk 0:00:05]} 65. f7
{[%clk 0:00:17.3]} 65... b2 {[%clk 0:00:05.9]} 66. Qb8 {[%clk 0:00:18.3]} 66...
Nc6 {[%clk 0:00:02.3]} 67. Qxb2 {[%clk 0:00:18.4]} 67... Nxe5 {[%clk 0:00:03.9]}
68. Qxe5+ {[%clk 0:00:16.8]} 68... Kxe5 {[%clk 0:00:04.6]} 69. f8=Q {[%clk
0:00:18.7]} 69... Kd5 {[%clk 0:00:05.6]} 70. Qa3 {[%clk 0:00:19.7]} 70... Kc4
{[%clk 0:00:06.6]} 71. Qxa5 {[%clk 0:00:20.9]} 1-0

[Event "*** Titled Tuesday Blitz"]
[Site "Chess.com"]
[Date "2018.06.05"]
[Round "9"]
[White "Tash_Boy"]
[Black "1stSecond"]
[Result "1-0"]
[WhiteElo "2692"]
[BlackElo "2604"]
[TimeControl "180+2"]
[EndTime "15:12:22 PDT"]
[Termination "Tash_Boy won by resignation"]

1. e4 {[%clk 0:02:55.8]} 1... e5 {[%clk 0:03:00.7]} 2. Nf3 {[%clk 0:02:50.5]}
2... Nc6 {[%clk 0:03:01.8]} 3. Bb5 {[%clk 0:02:49.2]} 3... a6 {[%clk 0:03:02.5]}
4. Ba4 {[%clk 0:02:49.5]} 4... Nf6 {[%clk 0:03:03.6]} 5. O-O {[%clk 0:02:50.9]}
5... Be7 {[%clk 0:03:01.6]} 6. d3 {[%clk 0:02:52.4]} 6... b5 {[%clk 0:03:02.5]}
7. Bb3 {[%clk 0:02:53.9]} 7... O-O {[%clk 0:03:03.9]} 8. a4 {[%clk 0:02:55.3]}
8... b4 {[%clk 0:03:04.3]} 9. a5 {[%clk 0:02:56.2]} 9... Rb8 {[%clk 0:03:00.9]}
10. Nbd2 {[%clk 0:02:57.1]} 10... d6 {[%clk 0:02:59.7]} 11. Nc4 {[%clk
0:02:58.6]} 11... h6 {[%clk 0:02:58.8]} 12. h3 {[%clk 0:02:58.9]} 12... Be6
{[%clk 0:02:54.4]} 13. Be3 {[%clk 0:03:00.3]} 13... Rb5 {[%clk 0:02:36.1]} 14.
Nfd2 {[%clk 0:03:00.9]} 14... Qa8 {[%clk 0:02:34.3]} 15. Ba4 {[%clk 0:03:00.1]}
15... Rbb8 {[%clk 0:02:34.3]} 16. Kh1 {[%clk 0:02:48.2]} 16... d5 {[%clk
0:02:22.2]} 17. Bxc6 {[%clk 0:02:47]} 17... Qxc6 {[%clk 0:02:24.1]} 18. Nxe5
{[%clk 0:02:48.1]} 18... Qb5 {[%clk 0:02:25.2]} 19. f4 {[%clk 0:02:41.5]} 19...
dxe4 {[%clk 0:02:25.2]} 20. dxe4 {[%clk 0:02:42.1]} 20... Rfd8 {[%clk
0:02:25.9]} 21. Qf3 {[%clk 0:02:38.9]} 21... Bc5 {[%clk 0:02:21.3]} 22. b3
{[%clk 0:02:34.5]} 22... Bd4 {[%clk 0:01:56.6]} 23. Bxd4 {[%clk 0:01:56.5]}
23... Rxd4 {[%clk 0:01:56.6]} 24. Rf2 {[%clk 0:01:56.1]} 24... Rbd8 {[%clk
0:01:56.1]} 25. Nd3 {[%clk 0:01:52.6]} 25... c5 {[%clk 0:01:09.8]} 26. f5 {[%clk
0:01:51.4]} 26... Bc8 {[%clk 0:01:08]} 27. e5 {[%clk 0:01:44.9]} 27... Bb7
{[%clk 0:01:09.3]} 28. Qg3 {[%clk 0:01:31.9]} 28... Nh5 {[%clk 0:01:10.1]} 29.
Qe3 {[%clk 0:01:32.7]} 29... Rxd3 {[%clk 0:01:11.3]} 30. cxd3 {[%clk 0:01:27.1]}
30... Rxd3 {[%clk 0:01:13.2]} 31. Qe1 {[%clk 0:01:07.8]} 31... Rxh3+ {[%clk
0:00:46.6]} 32. Kg1 {[%clk 0:01:08.1]} 32... Qd3 {[%clk 0:00:29.4]} 33. gxh3
{[%clk 0:00:44.4]} 33... Qg3+ {[%clk 0:00:30.3]} 34. Kf1 {[%clk 0:00:43.7]}
34... Qxh3+ {[%clk 0:00:31.6]} 35. Ke2 {[%clk 0:00:43.5]} 35... Qg4+ {[%clk
0:00:31.6]} 36. Nf3 {[%clk 0:00:32.1]} 36... Ng3+ {[%clk 0:00:14.9]} 37. Ke3
{[%clk 0:00:32.4]} 37... Nxf5+ {[%clk 0:00:15.5]} 38. Kd2 {[%clk 0:00:32.9]}
38... Bxf3 {[%clk 0:00:15.7]} 39. Kc2 {[%clk 0:00:28.9]} 39... Nd4+ {[%clk
0:00:14.1]} 40. Kb2 {[%clk 0:00:29.9]} 40... Bd5 {[%clk 0:00:11.6]} 41. Qe3
{[%clk 0:00:28.3]} 41... Nxb3 {[%clk 0:00:09.8]} 42. Raf1 {[%clk 0:00:25.4]}
42... c4 {[%clk 0:00:07.1]} 43. Rf4 {[%clk 0:00:15.5]} 43... c3+ {[%clk
0:00:09]} 44. Kc2 {[%clk 0:00:15.5]} 44... Qg6+ {[%clk 0:00:09.8]} 45. Qd3
{[%clk 0:00:16.5]} 45... Na1+ {[%clk 0:00:09.9]} 46. Rxa1 {[%clk 0:00:16.8]}
46... Bb3+ {[%clk 0:00:11.4]} 47. Kxb3 {[%clk 0:00:17.4]} 47... Qxd3 {[%clk
0:00:13]} 48. Kxb4 {[%clk 0:00:17.3]} 48... c2 {[%clk 0:00:14]} 49. Rc4 {[%clk
0:00:18.8]} 49... Qd2+ {[%clk 0:00:12]} 50. Kb3 {[%clk 0:00:19.1]} 50... Qe3+
{[%clk 0:00:12]} 51. Rc3 {[%clk 0:00:20.2]} 51... Qxe5 {[%clk 0:00:11.9]} 52.
Kxc2 {[%clk 0:00:21.6]} 52... h5 {[%clk 0:00:12.2]} 53. Ra4 {[%clk 0:00:22.3]}
53... g5 {[%clk 0:00:12.9]} 54. Rac4 {[%clk 0:00:22.5]} 54... h4 {[%clk
0:00:13.9]} 55. Rc5 {[%clk 0:00:23.6]} 55... Qe2+ {[%clk 0:00:10.6]} 56. Kb3
{[%clk 0:00:24.7]} 56... Qd2 {[%clk 0:00:09.9]} 57. Rc2 {[%clk 0:00:20.8]} 57...
Qd8 {[%clk 0:00:09.2]} 58. Rc8 {[%clk 0:00:20.2]} 58... Qxc8 {[%clk 0:00:10.7]}
59. Rxc8+ {[%clk 0:00:21.6]} 59... Kg7 {[%clk 0:00:12.6]} 60. Kc3 {[%clk
0:00:18.6]} 60... h3 {[%clk 0:00:13.9]} 61. Kd3 {[%clk 0:00:19.6]} 61... Kg6
{[%clk 0:00:14.6]} 62. Ke3 {[%clk 0:00:20.4]} 62... f5 {[%clk 0:00:12.3]} 63.
Kf3 {[%clk 0:00:21.5]} 63... g4+ {[%clk 0:00:09.2]} 64. Kg3 {[%clk 0:00:20.8]}
64... Kg5 {[%clk 0:00:09.9]} 65. Rg8+ {[%clk 0:00:22.2]} 65... Kf6 {[%clk
0:00:11]} 66. Kf4 {[%clk 0:00:23.7]} 66... Ke6 {[%clk 0:00:09]} 67. Rg6+ {[%clk
0:00:24.2]} 67... Kf7 {[%clk 0:00:06.1]} 68. Rxa6 {[%clk 0:00:25.4]} 68... h2
{[%clk 0:00:06.9]} 69. Rh6 {[%clk 0:00:25.2]} 1-0